fUSD/lending_fUSD_20260527
["ID","MTS","AMOUNT","RATE_DAILY","PERIOD"]
[423142958,1779891282000,-800.0,0.00024174,2]
[423142961,1779891293000,-802.07549388,0.00024174,2]
[423142960,1779891293000,-800.0,0.00024174,2]
[423142962,1779891336000,-479.22111335,0.00024174,2]
[423142964,1779891401000,-150.0,0.00024415,2]
[423142965,1779891401000,-150.0,0.00024657,2]
[423142966,1779891401000,-150.0,0.00024898,2]
[423142970,1779891401000,-772.1482972,0.00024174,2]
[423142968,1779891401000,-25.9857882,0.00025785,2]
[423142969,1779891401000,-772.1482972,0.00024174,2]
[423142967,1779891401000,-150.0,0.0002514,2]
[423142971,1779891402000,-292.92718385,0.00024174,2]
[423142975,1779891413000,-153.09,0.00018216,2]
[423142976,1779891413000,-126.5843677,0.00019174,2]
[423142974,1779891413000,-13.25281615,0.00017257,2]
[423142973,1779891413000,-139.83718385,0.00017257,2]
[423142972,1779891413000,-153.09,0.00016298,2]
[423142978,1779891414000,-153.09,0.00020133,2]
[423142977,1779891414000,-26.5056323,0.00019174,2]
[423142979,1779891414000,-113.33155155,0.00021092,2]
[423142980,1779891414000,-39.75844845,0.00021092,2]
[423142981,1779891414000,-153.09,0.00022051,2]
[423142983,1779891414000,-53.0112646,0.00023009,2]
[423142984,1779891414000,-153.09,0.00023968,2]
[423142985,1779891414000,-86.82591925,0.00024173,2]
[423142982,1779891414000,-100.0787354,0.00023009,2]
[423142986,1779891461000,-295.7,0.00024174,2]
[423142987,1779891502000,152.0,0.00015,2]
[423142988,1779891514000,-327.22111335,0.00015,2]
[423142989,1779891600000,-200.0,0.000146,5]
[423142995,1779891912000,-400.0,0.000147,5]
[423142996,1779891913000,-400.0,0.000148,5]
[423142998,1779891914000,-100.0,0.00014846,2]
[423142997,1779891914000,-300.0,0.000148,5]
[423142999,1779891915000,-50.0,0.00014846,2]
[423143000,1779891915000,-350.0,0.000149,5]
[423143003,1779891915000,-150.0,0.000149,5]
[423143004,1779891915000,-250.0,0.000149,2]
[423143001,1779891915000,-400.0,0.000149,5]
[423143008,1779891916000,-250.0,0.00014866,2]
[423143007,1779891916000,-150.0,0.00014761,2]
[423143006,1779891916000,-25.62234271,0.00014925,2]
[423143005,1779891916000,-374.37765729,0.000149,2]
[423143009,1779891917000,-400.0,0.00014866,2]
[423143010,1779891918000,-400.0,0.00014,2]
[423143011,1779891918000,-166.66,0.00013817,2]
[423143013,1779891918000,-336.35792251,0.00014,2]
[423143014,1779891918000,-63.64207749,0.00014108,2]
[423143012,1779891918000,-233.34,0.00014,2]
[423143021,1779891919000,-69.67792251,0.00014544,2]
[423143022,1779891919000,-120.86207749,0.0001469,2]
[423143020,1779891919000,-209.46,0.00014108,2]
[423143019,1779891919000,10444.27294519,0.000107,2]
[423143018,1779891919000,17265.0,0.000107,2]
[423143017,1779891919000,-130.32207749,0.00014544,2]
[423143016,1779891919000,-166.66,0.00014399,2]
[423143015,1779891919000,-103.01792251,0.00014108,2]
[423143025,1779891920000,-400.0,0.0001396,2]
[423143024,1779891920000,-400.0,0.000144,2]
[423143023,1779891920000,930.74087152,9.04e-05,2]
[423143027,1779891921000,-300.0,0.0001396,2]
[423143026,1779891921000,-100.0,0.0001396,2]
[423143028,1779891921000,-400.0,0.0001396,2]
[423143029,1779891921000,-400.0,0.00013904,2]
[423143031,1779891922000,-400.0,0.00013904,2]
[423143034,1779891923000,-400.0,0.00013904,2]
[423143033,1779891923000,-400.0,0.00013904,2]
[423143032,1779891923000,-400.0,0.00013904,2]
[423143035,1779891924000,151.0,8.9e-05,2]
[423143037,1779891924000,-150.0,0.00013903,2]
[423143038,1779891924000,-58.89808397,0.00013904,2]
[423143036,1779891924000,-191.10191603,0.00013834,2]
[423143039,1779891925000,-400.0,0.00013904,2]
[423143041,1779891925000,-400.0,0.00013904,2]
[423143040,1779891925000,-400.0,0.00013904,2]
[423143043,1779891926000,-400.0,0.00013699,2]
[423143047,1779891926000,1200.0,0.00010699,2]
[423143044,1779891926000,492.0,0.00028082,120]
[423143048,1779891926000,200.7737024,0.00010647,2]
[423143049,1779891926000,-400.0,0.00011769,2]
[423143046,1779891926000,282.0,0.00010699,2]
[423143055,1779892178000,-1280.0,0.00011769,2]
[423144645,1779892255000,-451.45403017,0.00013198,2]
[423144644,1779892255000,-201.14174005,0.00012946,2]
[423144643,1779892255000,-1280.0,0.00012946,2]
[423144642,1779892255000,-869.85825995,0.00012946,2]
[423144641,1779892255000,-410.14174005,0.0001246,2]
[423144646,1779892256000,-1280.0,0.00013198,2]
[423144649,1779892256000,-849.82263503,0.00013198,2]
[423144651,1779892256000,-1065.0,0.00013198,2]
[423144647,1779892256000,-250.0,0.00012946,2]
[423144650,1779892256000,-215.0,0.00011886,2]
[423144648,1779892256000,-180.17736497,0.00013132,2]
[423144652,1779892257000,-1280.0,0.00013198,2]
[423144653,1779892258000,-1280.0,0.00013198,2]
[423144655,1779892258000,-335.2866652,0.00013421,2]
[423144654,1779892258000,-944.7133348,0.00013198,2]
[423144660,1779892259000,-153.579654,0.00013388,2]
[423144659,1779892259000,-1280.0,0.00013388,2]
[423144658,1779892259000,-169.02652848,0.00013388,2]
[423144656,1779892259000,-300.0,0.00013197,2]
[423144657,1779892259000,-980.0,0.00013388,2]
[423144662,1779892260000,-1011.87,0.00013388,2]
[423144661,1779892260000,-268.13,0.00013,2]
[423144663,1779892261000,-1280.0,0.00013388,2]
[423144666,1779892262000,-1280.0,0.0001299,2]
[423144665,1779892262000,-744.56,0.0001299,2]
[423144664,1779892262000,-535.44,0.0001299,2]
[423144668,1779892263000,-1280.0,0.00012946,2]
[423144667,1779892263000,-1280.0,0.0001299,2]
[423144669,1779892264000,-1280.0,0.00012946,2]
[423144670,1779892264000,-1280.0,0.00012946,2]
[423144689,1779892265000,-150.0,0.00013488,2]
[423144672,1779892265000,-1120.0,0.00012962,2]
[423144675,1779892265000,-1201.47,0.0001299,2]
[423144673,1779892265000,-1280.0,0.00012962,2]
[423144676,1779892265000,-4000.0,0.0001327,2]
[423144674,1779892265000,-1146.94,0.00012962,2]
[423144677,1779892265000,-10674.0,0.00013303,2]
[423144680,1779892265000,-84.7133348,0.00013421,2]
[423144679,1779892265000,-8449.0,0.00013414,2]
[423144671,1779892265000,-160.0,0.00012946,2]
[423144681,1779892265000,-275.52,0.00013462,2]
[423144682,1779892265000,-150.0,0.00013488,2]
[423144685,1779892265000,-150.0,0.00013488,2]
[423144683,1779892265000,-150.0,0.00013488,2]
[423144684,1779892265000,-150.0,0.00013488,2]
[423144686,1779892265000,-150.0,0.00013488,2]
[423144687,1779892265000,-150.0,0.00013488,2]
[423144688,1779892265000,-150.0,0.00013488,2]
[423144690,1779892265000,-150.0,0.00013488,2]
[423144678,1779892265000,-8876.52381752,0.00013388,2]
[423144702,1779892266000,-1280.0,0.00013516,2]
[423144703,1779892266000,-830.17505337,0.00013516,2]
[423144707,1779892266000,-150.0,0.00013567,2]
[423144705,1779892266000,-11145.0,0.00013543,2]
[423144706,1779892266000,-150.0,0.00013567,2]
[423144701,1779892266000,-10291.82494663,0.00013516,2]
[423144704,1779892266000,-150.0,0.0001354,2]
[423144700,1779892266000,-150.0,0.00013514,2]
[423144696,1779892266000,-2164.83968663,0.00013489,2]
[423144698,1779892266000,-7701.16031337,0.00013489,2]
[423144697,1779892266000,-150.0,0.00012899,2]
[423144694,1779892266000,-150.0,0.00013488,2]
[423144693,1779892266000,-150.0,0.00013488,2]
[423144695,1779892266000,-150.0,0.00013488,2]
[423144691,1779892266000,-150.0,0.00013488,2]
[423144692,1779892266000,-239.21300105,0.00013488,2]
[423144708,1779892266000,-1998.0,0.0001357,2]
[423144699,1779892266000,-185.0,0.00013501,2]
[423144709,1779892266000,-150.0,0.00013571,2]
[423144713,1779892266000,-150.0,0.00013638,2]
[423144710,1779892266000,-150.0,0.00013593,2]
[423144728,1779892266000,-150.0,0.00013787,2]
[423144729,1779892266000,-150.0,0.00013803,2]
[423144711,1779892266000,-4000.0,0.00013594,2]
[423144723,1779892266000,-150.0,0.00013724,2]
[423144726,1779892266000,-150.0,0.00013751,2]
[423144725,1779892266000,-150.0,0.00013737,2]
[423144724,1779892266000,-150.0,0.00013737,2]
[423144722,1779892266000,-150.0,0.00013724,2]
[423144718,1779892266000,-150.0,0.00013698,2]
[423144727,1779892266000,-150.0,0.00013777,2]
[423144720,1779892266000,-200.0,0.00013699,2]
[423144719,1779892266000,-95.93,0.00013699,2]
[423144717,1779892266000,-150.0,0.00013672,2]
[423144716,1779892266000,-150.0,0.00013654,2]
[423144714,1779892266000,-150.0,0.00013645,2]
[423144715,1779892266000,-150.0,0.00013645,2]
[423144712,1779892266000,-150.0,0.00013619,2]
[423144721,1779892266000,-150.0,0.00013702,2]
[423144741,1779892267000,248.809806,7.459e-05,2]
[423144739,1779892267000,1247.33,6.781e-05,2]
[423144740,1779892267000,1247.33,7.12e-05,2]
[423144738,1779892267000,1247.33,6.442e-05,2]
[423144736,1779892267000,-150.0,0.00013882,2]
[423144735,1779892267000,-150.0,0.00013882,2]
[423144732,1779892267000,-150.0,0.00013829,2]
[423144733,1779892267000,-200.7737024,0.00013834,2]
[423144734,1779892267000,-150.0,0.00013856,2]
[423144730,1779892267000,-150.0,0.00013803,2]
[423144731,1779892267000,-150.0,0.00013821,2]
[423144743,1779892267000,1247.33,7.798e-05,2]
[423144737,1779892267000,-30611.89924423,0.00013904,2]
[423144742,1779892267000,998.520194,7.459e-05,2]
[423144751,1779892267000,1247.33,0.0001051,2]
[423144744,1779892267000,1247.33,8.137e-05,2]
[423144746,1779892267000,1247.33,8.815e-05,2]
[423144747,1779892267000,1247.33,9.154e-05,2]
[423144748,1779892267000,1247.33,9.493e-05,2]
[423144750,1779892267000,1247.33,0.00010171,2]
[423144749,1779892267000,1247.33,9.832e-05,2]
[423144757,1779892267000,1247.33,0.00012544,2]
[423144752,1779892267000,1247.33,0.00010849,2]
[423144753,1779892267000,1247.33,0.00011188,2]
[423144755,1779892267000,1247.33,0.00011866,2]
[423144754,1779892267000,1247.33,0.00011527,2]
[423144756,1779892267000,1247.33,0.00012205,2]
[423144758,1779892267000,1247.33,0.00012883,2]
[423144745,1779892267000,1247.33,8.476e-05,2]
[423144759,1779892268000,150.0,6.505e-05,2]
[423144760,1779892268000,-2110.105816,0.00013904,2]
[423144761,1779892268000,-1280.0,0.00013904,2]
[423144762,1779892268000,-410.14174005,0.00013904,2]
[423144774,1779892269000,1680.0,9.322e-05,2]
[423144773,1779892269000,1200.0,8.475e-05,2]
[423144771,1779892269000,300.0,8.814e-05,2]
[423144772,1779892269000,300.0,8.814e-05,2]
[423144769,1779892269000,-150.0,0.00013916,2]
[423144768,1779892269000,-150.0,0.00013908,2]
[423144767,1779892269000,-76.1633757,0.00013904,2]
[423144770,1779892269000,-33.97836435,0.00013917,2]
[423144766,1779892269000,-73.8366243,0.00013904,2]
[423144765,1779892269000,-150.0,0.00013904,2]
[423144763,1779892269000,-36.30511575,0.00013904,2]
[423144764,1779892269000,-150.0,0.00013904,2]
[423144775,1779892270000,2351.0,0.00010255,2]
[423144776,1779892270000,150.0,0.00012544,2]
[423144780,1779892270000,163.52,0.0001,2]
[423144778,1779892270000,3930.534306,0.00012408,2]
[423144779,1779892270000,-410.14174005,0.00012408,2]
[423144777,1779892270000,3292.0,0.0001128,2]
[423144804,1779892271000,-150.0,0.00014014,2]
[423144799,1779892271000,-150.0,0.00013987,2]
[423144796,1779892271000,-300.0,0.0001396,2]
[423144797,1779892271000,-150.0,0.00013961,2]
[423144800,1779892271000,-150.0,0.00013987,2]
[423144798,1779892271000,-150.0,0.00013961,2]
[423144794,1779892271000,-150.0,0.00013935,2]
[423144802,1779892271000,-433.3911166,0.0001399,2]
[423144795,1779892271000,-150.0,0.00013937,2]
[423144793,1779892271000,-3966.02163565,0.00013917,2]
[423144791,1779892271000,-7705.31348965,0.0001389,2]
[423144790,1779892271000,-4192.97736948,0.00013649,2]
[423144788,1779892271000,-438.78765803,0.00013649,2]
[423144789,1779892271000,-452.9517951,0.00013649,2]
[423144803,1779892271000,-512.6506785,0.0001399,2]
[423144787,1779892271000,-374.4058776,0.00013649,2]
[423144786,1779892271000,-308.6397,0.00013649,2]
[423144783,1779892271000,-113.1822139,0.00013636,2]
[423144784,1779892271000,-296.95952615,0.00013649,2]
[423144782,1779892271000,-141.8177861,0.00013636,2]
[423144781,1779892271000,-268.32395395,0.00012408,2]
[423144792,1779892271000,-14001.46651035,0.0001389,2]
[423144801,1779892271000,-150.0,0.00013987,2]
[423144785,1779892271000,-388.27807364,0.00013649,2]
[423144805,1779892271000,-150.0,0.0001404,2]
[423144806,1779892271000,-150.0,0.0001404,2]
[423144828,1779892271000,-150.0,0.00014276,2]
[423144825,1779892271000,-150.0,0.00014237,2]
[423144826,1779892271000,-150.0,0.00014237,2]
[423144823,1779892271000,-150.0,0.00014237,2]
[423144824,1779892271000,-150.0,0.00014237,2]
[423144822,1779892271000,-150.0,0.00014237,2]
[423144821,1779892271000,-150.0,0.00014237,2]
[423144820,1779892271000,-150.0,0.00014224,2]
[423144819,1779892271000,-150.0,0.00014198,2]
[423144818,1779892271000,-150.0,0.00014198,2]
[423144827,1779892271000,-150.0,0.0001425,2]
[423144815,1779892271000,-150.0,0.00014154,2]
[423144817,1779892271000,-150.0,0.00014171,2]
[423144808,1779892271000,-150.0,0.0001407,2]
[423144809,1779892271000,-150.0,0.00014087,2]
[423144807,1779892271000,-150.0,0.00014066,2]
[423144810,1779892271000,-150.0,0.00014092,2]
[423144811,1779892271000,-150.0,0.00014119,2]
[423144813,1779892271000,-150.0,0.0001413,2]
[423144812,1779892271000,-150.0,0.00014119,2]
[423144816,1779892271000,-420.0,0.00014166,2]
[423144814,1779892271000,-150.0,0.00014145,2]
[423144856,1779892272000,-150.0,0.0001457,2]
[423144860,1779892272000,-150.0,0.00014618,2]
[423144854,1779892272000,-150.0,0.00014558,2]
[423144853,1779892272000,-202.36505084,0.00014544,2]
[423144852,1779892272000,-150.0,0.00014539,2]
[423144858,1779892272000,-150.0,0.00014592,2]
[423144861,1779892272000,-150.0,0.00014645,2]
[423144863,1779892272000,-150.0,0.00014671,2]
[423144864,1779892272000,-150.0,0.00014671,2]
[423144868,1779892272000,-4100.0,0.000147,5]
[423144865,1779892272000,-150.0,0.00014687,2]
[423144862,1779892272000,-150.0,0.00014653,2]
[423144866,1779892272000,-45.79792251,0.0001469,2]
[423144867,1779892272000,-150.0,0.00014697,2]
[423144873,1779892272000,-150.0,0.0001475,2]
[423144874,1779892272000,-150.0,0.00014772,2]
[423144878,1779892272000,-150.0,0.0001482,2]
[423144857,1779892272000,-150.0,0.00014592,2]
[423144859,1779892272000,-3000.0,0.000146,5]
[423144850,1779892272000,-150.0,0.00014513,2]
[423144841,1779892272000,-150.0,0.00014408,2]
[423144851,1779892272000,-150.0,0.00014537,2]
[423144834,1779892272000,-150.0,0.00014355,2]
[423144830,1779892272000,-150.0,0.00014303,2]
[423144835,1779892272000,-150.0,0.00014355,2]
[423144829,1779892272000,-150.0,0.00014276,2]
[423144833,1779892272000,-150.0,0.00014344,2]
[423144832,1779892272000,-150.0,0.00014329,2]
[423144831,1779892272000,-150.0,0.0001432,2]
[423144836,1779892272000,-150.0,0.00014382,2]
[423144837,1779892272000,-150.0,0.00014387,2]
[423144849,1779892272000,-150.0,0.00014513,2]
[423144838,1779892272000,-838.51090496,0.000144,2]
[423144843,1779892272000,-150.0,0.00014434,2]
[423144839,1779892272000,-1000.0,0.000144,5]
[423144842,1779892272000,-150.0,0.00014434,2]
[423144840,1779892272000,-150.0,0.00014404,2]
[423144846,1779892272000,-150.0,0.00014487,2]
[423144844,1779892272000,-150.0,0.0001446,2]
[423144845,1779892272000,-150.0,0.00014487,2]
[423144848,1779892272000,-2000.0,0.000145,5]
[423144847,1779892272000,-150.0,0.00014487,2]
[423144877,1779892272000,-150.0,0.00014802,2]
[423144876,1779892272000,-5100.0,0.000148,5]
[423144855,1779892272000,-150.0,0.00014566,2]
[423144879,1779892272000,-433.0,0.00014827,2]
[423144902,1779892272000,-950605.76325377,0.000149,2]
[423144897,1779892272000,-74829.85633091,0.000149,2]
[423144901,1779892272000,-1561.73611048,0.000149,2]
[423144899,1779892272000,-74829.85633091,0.000149,2]
[423144903,1779892272000,-553.89082023,0.000149,2]
[423144906,1779892272000,-175.2751763,0.000149,2]
[423144905,1779892272000,-74829.85633091,0.000149,2]
[423144908,1779892272000,-150.0,0.00014907,2]
[423144907,1779892272000,-150.0,0.00014903,2]
[423144912,1779892272000,-194.45645037,0.00014925,2]
[423144911,1779892272000,-168.83410767,0.00014925,2]
[423144913,1779892272000,-150.0,0.00014934,2]
[423144915,1779892272000,-8798.0,0.00014959,2]
[423144910,1779892272000,-420.0,0.00014912,2]
[423144914,1779892272000,-5786.0,0.00014959,2]
[423144916,1779892272000,-20839.0,0.00014959,2]
[423144918,1779892272000,-166.66,0.00014981,2]
[423144917,1779892272000,-150.0,0.0001496,2]
[423144875,1779892272000,-150.0,0.00014776,2]
[423144900,1779892272000,-74829.85633091,0.000149,2]
[423144898,1779892272000,-74829.85633091,0.000149,2]
[423144909,1779892272000,-150.0,0.00014907,2]
[423144896,1779892272000,-74829.85633091,0.00014899,2]
[423144870,1779892272000,-150.0,0.00014737,2]
[423144904,1779892272000,-1000.0,0.000149,5]
[423144869,1779892272000,-150.0,0.00014723,2]
[423144872,1779892272000,-150.0,0.0001475,2]
[423144871,1779892272000,-150.0,0.00014737,2]
[423144882,1779892272000,-150.0,0.00014836,2]
[423144880,1779892272000,-150.0,0.00014829,2]
[423144885,1779892272000,-508.0,0.00014866,2]
[423144886,1779892272000,-651.0,0.00014866,2]
[423144884,1779892272000,-3315.36792672,0.00014866,2]
[423144881,1779892272000,-150.0,0.00014829,2]
[423144887,1779892272000,-595.52054542,0.00014866,2]
[423144888,1779892272000,-691.08958254,0.00014866,2]
[423144890,1779892272000,-150.0,0.00014881,2]
[423144889,1779892272000,-2156.58194532,0.00014866,2]
[423144891,1779892272000,-15302.86476605,0.00014899,2]
[423144892,1779892272000,-74829.85633093,0.00014899,2]
[423144893,1779892272000,-74829.85633091,0.00014899,2]
[423144883,1779892272000,-150.0,0.00014855,2]
[423144894,1779892272000,-74829.85633091,0.00014899,2]
[423144895,1779892272000,-74829.85633091,0.00014899,2]
[423144943,1779892273000,-500.0,0.00014999,2]
[423144958,1779892273000,-500.0,0.00014999,2]
[423144956,1779892273000,-500.0,0.00014999,2]
[423144955,1779892273000,-500.0,0.00014999,2]
[423144952,1779892273000,-500.0,0.00014999,2]
[423144950,1779892273000,-500.0,0.00014999,2]
[423144951,1779892273000,-500.0,0.00014999,2]
[423144960,1779892273000,-500.0,0.00014999,2]
[423144949,1779892273000,-1277.66913661,0.00014999,5]
[423144953,1779892273000,-500.0,0.00014999,2]
[423144957,1779892273000,-500.0,0.00014999,2]
[423144954,1779892273000,-500.0,0.00014999,2]
[423144968,1779892273000,-500.0,0.00014999,2]
[423144961,1779892273000,-500.0,0.00014999,2]
[423144964,1779892273000,-500.0,0.00014999,2]
[423144962,1779892273000,-390.5284277,0.00014999,2]
[423144963,1779892273000,-153.55693177,0.00014999,2]
[423144967,1779892273000,-500.0,0.00014999,2]
[423144966,1779892273000,-500.0,0.00014999,2]
[423144965,1779892273000,-500.0,0.00014999,2]
[423144969,1779892273000,-500.0,0.00014999,2]
[423144970,1779892273000,-500.0,0.00014999,2]
[423144971,1779892273000,-500.0,0.00014999,2]
[423144946,1779892273000,-1098.07046975,0.00014999,5]
[423144959,1779892273000,-500.0,0.00014999,2]
[423144948,1779892273000,-1277.66913661,0.00014999,5]
[423144919,1779892273000,-674.37,0.00014985,2]
[423144945,1779892273000,-1099.64347239,0.00014999,5]
[423144979,1779892273000,-300.0,0.00014999,2]
[423144927,1779892273000,-150.0,0.00014986,2]
[423144921,1779892273000,-231.63252361,0.00014986,2]
[423144922,1779892273000,-251.3709264,0.00014986,2]
[423144926,1779892273000,-150.0,0.00014986,2]
[423144920,1779892273000,-215.66,0.00014985,2]
[423144923,1779892273000,-151.42331975,0.00014986,2]
[423144924,1779892273000,-201.60479592,0.00014986,2]
[423144925,1779892273000,-220.58459687,0.00014986,2]
[423144928,1779892273000,-170.84201056,0.00014986,2]
[423144931,1779892273000,-194.75261827,0.00014986,2]
[423144936,1779892273000,-500.0,0.00014998,2]
[423144933,1779892273000,-3868.87675331,0.0001499,2]
[423144929,1779892273000,-160.45875796,0.00014986,2]
[423144930,1779892273000,-222.80647009,0.00014986,2]
[423144937,1779892273000,-1000.0,0.00014999,2]
[423144932,1779892273000,-153.23618636,0.00014986,2]
[423144934,1779892273000,-3868.87675331,0.0001499,2]
[423144935,1779892273000,-3868.87675331,0.0001499,2]
[423144938,1779892273000,-500.0,0.00014999,2]
[423144940,1779892273000,-500.0,0.00014999,2]
[423144939,1779892273000,-500.0,0.00014999,2]
[423144941,1779892273000,-500.0,0.00014999,2]
[423144947,1779892273000,-1097.29439826,0.00014999,5]
[423144944,1779892273000,-500.0,0.00014999,2]
[423144942,1779892273000,-500.0,0.00014999,2]
[423144978,1779892273000,-300.0,0.00014999,2]
[423144972,1779892273000,-500.0,0.00014999,2]
[423144975,1779892273000,-500.0,0.00014999,2]
[423145015,1779892273000,-300.0,0.00016114,2]
[423145004,1779892273000,-271.34,0.00015206,2]
[423145007,1779892273000,-420.0,0.00015657,2]
[423145006,1779892273000,-339.13,0.000153,2]
[423145011,1779892273000,-453.99205745,0.000161,2]
[423145013,1779892273000,-300.0,0.00016114,2]
[423145009,1779892273000,-453.99205745,0.00016,2]
[423145010,1779892273000,-1155.60166763,0.00016015,2]
[423145012,1779892273000,-736.0,0.00016107,2]
[423145008,1779892273000,-2000.0,0.00015761,2]
[423145016,1779892273000,-670.58118315,0.00016114,2]
[423145005,1779892273000,-166.66,0.00015271,2]
[423145017,1779892273000,-453.99205745,0.000162,2]
[423145021,1779892273000,-151.0,0.00016438,2]
[423145020,1779892273000,-1360.8,0.00016438,2]
[423145018,1779892273000,-166.66,0.00016233,2]
[423145027,1779892273000,-1555.496535,0.00016438,2]
[423145025,1779892273000,-1555.496535,0.00016438,2]
[423145024,1779892273000,-1555.496535,0.00016438,2]
[423145022,1779892273000,-151.0,0.00016438,2]
[423145026,1779892273000,-1555.496535,0.00016438,2]
[423145023,1779892273000,-275.614806,0.00016438,2]
[423145029,1779892273000,-254.0,0.00017148,2]
[423145028,1779892273000,-166.66,0.00016769,2]
[423145019,1779892273000,-420.0,0.00016403,2]
[423144997,1779892273000,-1382.569618,0.00015,2]
[423145014,1779892273000,-300.0,0.00016114,2]
[423144998,1779892273000,-231.655548,0.00015,2]
[423145000,1779892273000,-187.442691,0.00015,2]
[423144973,1779892273000,-500.0,0.00014999,2]
[423144977,1779892273000,-500.0,0.00014999,2]
[423144976,1779892273000,-320.3,0.00014999,2]
[423144981,1779892273000,-300.0,0.00014999,2]
[423144991,1779892273000,-1183.951803,0.00015,2]
[423144980,1779892273000,-300.0,0.00014999,2]
[423144982,1779892273000,-300.0,0.00014999,2]
[423144984,1779892273000,-300.0,0.00014999,2]
[423144983,1779892273000,-666.0,0.00014999,2]
[423144986,1779892273000,-666.0,0.00014999,2]
[423144989,1779892273000,-1183.951803,0.00015,2]
[423144985,1779892273000,-300.0,0.00014999,2]
[423144974,1779892273000,-500.0,0.00014999,2]
[423144996,1779892273000,-1382.569618,0.00015,2]
[423144987,1779892273000,-3694679.53169079,0.00015,2]
[423144990,1779892273000,-1183.951803,0.00015,2]
[423144993,1779892273000,-192.18,0.00015,2]
[423145003,1779892273000,-1852.42,0.0001508,2]
[423144992,1779892273000,-1183.951803,0.00015,2]
[423144995,1779892273000,-1382.569618,0.00015,2]
[423144994,1779892273000,-1382.569618,0.00015,2]
[423144988,1779892273000,-3176705.16333582,0.00015,2]
[423144999,1779892273000,-187.442691,0.00015,2]
[423145002,1779892273000,-151.0,0.00015068,2]
[423145001,1779892273000,-1426.0,0.00015014,2]
[423145071,1779892274000,-1155.60166761,0.00019914,2]
[423145057,1779892274000,-420.0,0.0001864,2]
[423145069,1779892274000,-2000.0,0.00019701,2]
[423145064,1779892274000,-151.0,0.00019178,2]
[423145066,1779892274000,-151.0,0.00019178,2]
[423145059,1779892274000,-254.0,0.00019148,2]
[423145063,1779892274000,-364.0,0.00019148,2]
[423145056,1779892274000,-1360.8,0.0001841,2]
[423145054,1779892274000,-364.0,0.00018148,2]
[423145061,1779892274000,-170.0,0.00019148,2]
[423145072,1779892274000,-2000.0,0.0001996,7]
[423145065,1779892274000,-151.0,0.00019178,2]
[423145068,1779892274000,-271.34,0.00019644,2]
[423145075,1779892274000,-979.25873564,0.0002,2]
[423145070,1779892274000,-288.0,0.00019726,2]
[423145074,1779892274000,-158.0,0.0002,2]
[423145073,1779892274000,-183.0,0.0002,2]
[423145080,1779892274000,-190.0,0.0002,2]
[423145079,1779892274000,-1040.0,0.0002,2]
[423145078,1779892274000,-189.0,0.0002,2]
[423145081,1779892274000,-176.12555738,0.0002,2]
[423145077,1779892274000,-218.0,0.0002,2]
[423145076,1779892274000,-471.0,0.0002,2]
[423145083,1779892274000,-176.12555738,0.0002,2]
[423145084,1779892274000,-176.12555738,0.0002,2]
[423145067,1779892274000,-251.318471,0.00019178,2]
[423145058,1779892274000,-166.66,0.00018913,2]
[423145038,1779892274000,-500.0,0.00017676,2]
[423145060,1779892274000,-254.0,0.00019148,2]